Workbook

Sheet Panduan
B2: ARUS KAS PRIBADI
B3: Buku kerja ini memiliki lembar kerja arus kas tahunan, bulanan, dan harian. Pilih tipe arus kas yang paling sesuai untuk Anda atau gunakan semuanya untuk membantu mendapatkan wawasan tentang arus kas pribadi.
B5: Arus Kas Harian | E5: Arus Kas Bulanan | H5: Arus Kas Tahunan
B7: Masukkan perkiraan jumlah arus kas yang dialami setiap hari dan tinjau total bulanan dan tahunan yang diperkirakan. Gunakan ini untuk memahami kebiasaan pengeluaran harian Anda dalam sebulan atau setahun. | E7: Masukkan arus kas bulanan yang terjadi per bulan atau perkirakan sisa bulan untuk melihat rencana arus kas bagi tahun tersebut per bulannya. | H7: Masukkan jumlah arus kas tahunan dalam empat lembar kerja: Pendapatan, Pengeluaran, Kebijakan, dan Tabungan. Lihat perincian bulanannya dan perbandingan semuanya, dan yang terpenting adalah keuntungan dalam jumlah tahunan dan bulanan.

Sheet Arus Kas Harian
B1: ARUS KAS PRIBADI
C2: Total Kas Tersedia: | D2: =ArusKasHarian -> Rp577.84 | F2: CATATAN: Jika ingin menambahkan item harian ke Tabel, perkirakan jumlah/nilai bulanan dan tempatkan nilai dalam kolom bulan yang sesuai.
B4: RINGKASAN HARIAN
B5: Total | C5: Harian | D5: Bulanan | E5: Tahunan
B6: Pendapatan | C6: =SUMIF(Harian[Tipe],$B6,Harian[Harian]) -> Rp342.47 | D6: =SUMIF(Harian[Tipe],$B6,Harian[Bulanan]) -> Rp10,416.80 | E6: =SUMIF(Harian[Tipe],$B6,Harian[Tahunan]) -> Rp125,001.55
B7: Pengeluaran | C7: =SUMIF(Harian[Tipe],$B7,Harian[Harian]) -> Rp136.06 | D7: =SUMIF(Harian[Tipe],$B7,Harian[Bulanan]) -> Rp4,138.49 | E7: =SUMIF(Harian[Tipe],$B7,Harian[Tahunan]) -> Rp49,661.90
B8: Diskresioner | C8: =SUMIF(Harian[Tipe],$B8,Harian[Harian]) -> Rp36.29 | D8: =SUMIF(Harian[Tipe],$B8,Harian[Bulanan]) -> Rp1,103.82 | E8: =SUMIF(Harian[Tipe],$B8,Harian[Tahunan]) -> Rp13,245.85
B9: Tabungan | C9: =SUMIF(Harian[Tipe],$B9,Harian[Harian]) -> Rp63.02 | D9: =SUMIF(Harian[Tipe],$B9,Harian[Bulanan]) -> Rp1,916.86 | E9: =SUMIF(Harian[Tipe],$B9,Harian[Tahunan]) -> Rp23,002.30
B11: Tipe | C11: Deskripsi | D11: Harian | E11: Bulanan | F11: Tahunan
B12: Pendapatan | C12: Gaji | D12: Rp246.58 | E12: =Harian[[#This Row],[Tahunan]]/12 -> Rp7,500.14 | F12: =Harian[[#This Row],[Harian]]*365 -> Rp90,001.70
B13: Pendapatan | C13: Komisi/bonus | D13: Rp13.70 | E13: =Harian[[#This Row],[Tahunan]]/12 -> Rp416.71 | F13: =Harian[[#This Row],[Harian]]*365 -> Rp5,000.50
B14: Pendapatan | C14: Lain-lain 1 | D14: Rp82.19 | E14: =Harian[[#This Row],[Tahunan]]/12 -> Rp2,499.95 | F14: =Harian[[#This Row],[Harian]]*365 -> Rp29,999.35
B15: Pendapatan | C15: Lain-lain 2 | D15: Rp0.00 | E15: =Harian[[#This Row],[Tahunan]]/12 -> Rp0.00 | F15: =Harian[[#This Row],[Harian]]*365 -> Rp0.00
B16: Pendapatan | C16: Lain-lain 3 | D16: Rp0.00 | E16: =Harian[[#This Row],[Tahunan]]/12 -> Rp0.00 | F16: =Harian[[#This Row],[Harian]]*365 -> Rp0.00
B17: Pendapatan | C17: Lain-lain 4 | D17: Rp0.00 | E17: =Harian[[#This Row],[Tahunan]]/12 -> Rp0.00 | F17: =Harian[[#This Row],[Harian]]*365 -> Rp0.00
B18: Pengeluaran | C18: Federal/SS/Medicare | D18: Rp41.10 | E18: =Harian[[#This Row],[Tahunan]]/12 -> Rp1,250.13 | F18: =Harian[[#This Row],[Harian]]*365 -> Rp15,001.50
B19: Pengeluaran | C19: Pajak Pendapatan Daerah | D19: Rp6.85 | E19: =Harian[[#This Row],[Tahunan]]/12 -> Rp208.35 | F19: =Harian[[#This Row],[Harian]]*365 -> Rp2,500.25
B20: Pengeluaran | C20: Pajak/Biaya Kendaraan | D20: Rp0.55 | E20: =Harian[[#This Row],[Tahunan]]/12 -> Rp16.73 | F20: =Harian[[#This Row],[Harian]]*365 -> Rp200.75
B21: Pengeluaran | C21: Pembayaran Kendaraan | D21: Rp10.96 | E21: =Harian[[#This Row],[Tahunan]]/12 -> Rp333.37 | F21: =Harian[[#This Row],[Harian]]*365 -> Rp4,000.40
B22: Pengeluaran | C22: Hipotek/Sewa | D22: Rp41.10 | E22: =Harian[[#This Row],[Tahunan]]/12 -> Rp1,250.13 | F22: =Harian[[#This Row],[Harian]]*365 -> Rp15,001.50
B23: Pengeluaran | C23: Asuransi | D23: Rp0.68 | E23: =Harian[[#This Row],[Tahunan]]/12 -> Rp20.68 | F23: =Harian[[#This Row],[Harian]]*365 -> Rp248.20
B24: Pengeluaran | C24: Listrik | D24: Rp3.29 | E24: =Harian[[#This Row],[Tahunan]]/12 -> Rp100.07 | F24: =Harian[[#This Row],[Harian]]*365 -> Rp1,200.85
B25: Pengeluaran | C25: Bahan bakar | D25: Rp1.64 | E25: =Harian[[#This Row],[Tahunan]]/12 -> Rp49.88 | F25: =Harian[[#This Row],[Harian]]*365 -> Rp598.60
B26: Pengeluaran | C26: Air | D26: Rp1.64 | E26: =Harian[[#This Row],[Tahunan]]/12 -> Rp49.88 | F26: =Harian[[#This Row],[Harian]]*365 -> Rp598.60
B27: Pengeluaran | C27: Selokan | D27: Rp0.82 | E27: =Harian[[#This Row],[Tahunan]]/12 -> Rp24.94 | F27: =Harian[[#This Row],[Harian]]*365 -> Rp299.30
B28: Pengeluaran | C28: Sampah | D28: Rp0.41 | E28: =Harian[[#This Row],[Tahunan]]/12 -> Rp12.47 | F28: =Harian[[#This Row],[Harian]]*365 -> Rp149.65
B29: Pengeluaran | C29: Telepon | D29: Rp1.64 | E29: =Harian[[#This Row],[Tahunan]]/12 -> Rp49.88 | F29: =Harian[[#This Row],[Harian]]*365 -> Rp598.60
B30: Pengeluaran | C30: Internet | D30: Rp1.64 | E30: =Harian[[#This Row],[Tahunan]]/12 -> Rp49.88 | F30: =Harian[[#This Row],[Harian]]*365 -> Rp598.60
B31: Pengeluaran | C31: Prem Disabilitas | D31: Rp4.11 | E31: =Harian[[#This Row],[Tahunan]]/12 -> Rp125.01 | F31: =Harian[[#This Row],[Harian]]*365 -> Rp1,500.15
B32: Pengeluaran | C32: Makanan | D32: Rp13.70 | E32: =Harian[[#This Row],[Tahunan]]/12 -> Rp416.71 | F32: =Harian[[#This Row],[Harian]]*365 -> Rp5,000.50
B33: Pengeluaran | C33: Pakaian | D33: Rp3.29 | E33: =Harian[[#This Row],[Tahunan]]/12 -> Rp100.07 | F33: =Harian[[#This Row],[Harian]]*365 -> Rp1,200.85
B34: Pengeluaran | C34: Medis/Gigi/Rx | D34: Rp1.64 | E34: =Harian[[#This Row],[Tahunan]]/12 -> Rp49.88 | F34: =Harian[[#This Row],[Harian]]*365 -> Rp598.60
B35: Pengeluaran | C35: Bus | D35: Rp1.00 | E35: =Harian[[#This Row],[Tahunan]]/12 -> Rp30.42 | F35: =Harian[[#This Row],[Harian]]*365 -> Rp365.00
B36: Pengeluaran | C36: Lain-lain 2 | D36: Rp0.00 | E36: =Harian[[#This Row],[Tahunan]]/12 -> Rp0.00 | F36: =Harian[[#This Row],[Harian]]*365 -> Rp0.00
B37: Pengeluaran | C37: Lain-lain 3 | D37: Rp0.00 | E37: =Harian[[#This Row],[Tahunan]]/12 -> Rp0.00 | F37: =Harian[[#This Row],[Harian]]*365 -> Rp0.00
B38: Pengeluaran | C38: Lain-lain 4 | D38: Rp0.00 | E38: =Harian[[#This Row],[Tahunan]]/12 -> Rp0.00 | F38: =Harian[[#This Row],[Harian]]*365 -> Rp0.00
B39: Diskresioner | C39: Makan di Luar | D39: Rp3.29 | E39: =Harian[[#This Row],[Tahunan]]/12 -> Rp100.07 | F39: =Harian[[#This Row],[Harian]]*365 -> Rp1,200.85
B40: Diskresioner | C40: Hadiah | D40: Rp1.64 | E40: =Harian[[#This Row],[Tahunan]]/12 -> Rp49.88 | F40: =Harian[[#This Row],[Harian]]*365 -> Rp598.60
B41: Diskresioner | C41: Perjalanan | D41: Rp6.16 | E41: =Harian[[#This Row],[Tahunan]]/12 -> Rp187.37 | F41: =Harian[[#This Row],[Harian]]*365 -> Rp2,248.40
B42: Diskresioner | C42: Hiburan | D42: Rp3.29 | E42: =Harian[[#This Row],[Tahunan]]/12 -> Rp100.07 | F42: =Harian[[#This Row],[Harian]]*365 -> Rp1,200.85
B43: Diskresioner | C43: Perawatan Pribadi | D43: Rp0.82 | E43: =Harian[[#This Row],[Tahunan]]/12 -> Rp24.94 | F43: =Harian[[#This Row],[Harian]]*365 -> Rp299.30
B44: Diskresioner | C44: Belanja | D44: Rp5.48 | E44: =Harian[[#This Row],[Tahunan]]/12 -> Rp166.68 | F44: =Harian[[#This Row],[Harian]]*365 -> Rp2,000.20
B45: Diskresioner | C45: Amal | D45: Rp1.64 | E45: =Harian[[#This Row],[Tahunan]]/12 -> Rp49.88 | F45: =Harian[[#This Row],[Harian]]*365 -> Rp598.60
B46: Diskresioner | C46: Klub/Keanggotaan | D46: Rp0.82 | E46: =Harian[[#This Row],[Tahunan]]/12 -> Rp24.94 | F46: =Harian[[#This Row],[Harian]]*365 -> Rp299.30
B47: Diskresioner | C47: Renovasi Rumah | D47: Rp13.15 | E47: =Harian[[#This Row],[Tahunan]]/12 -> Rp399.98 | F47: =Harian[[#This Row],[Harian]]*365 -> Rp4,799.75
B48: Diskresioner | C48: Lain-lain 1 | D48: Rp0.00 | E48: =Harian[[#This Row],[Tahunan]]/12 -> Rp0.00 | F48: =Harian[[#This Row],[Harian]]*365 -> Rp0.00
B49: Diskresioner | C49: Lain-lain 2 | D49: Rp0.00 | E49: =Harian[[#This Row],[Tahunan]]/12 -> Rp0.00 | F49: =Harian[[#This Row],[Harian]]*365 -> Rp0.00
B50: Tabungan | C50: Cadangan Kas | D50: Rp13.70 | E50: =Harian[[#This Row],[Tahunan]]/12 -> Rp416.71 | F50: =Harian[[#This Row],[Harian]]*365 -> Rp5,000.50
B51: Tabungan | C51: Pensiun/Dll | D51: Rp32.88 | E51: =Harian[[#This Row],[Tahunan]]/12 -> Rp1,000.10 | F51: =Harian[[#This Row],[Harian]]*365 -> Rp12,001.20
B52: Tabungan | C52: Rekening Tabungan | D52: Rp16.44 | E52: =Harian[[#This Row],[Tahunan]]/12 -> Rp500.05 | F52: =Harian[[#This Row],[Harian]]*365 -> Rp6,000.60
B53: Tabungan | C53: Lain-lain 1 | D53: Rp0.00 | E53: =Harian[[#This Row],[Tahunan]]/12 -> Rp0.00 | F53: =Harian[[#This Row],[Harian]]*365 -> Rp0.00
B54: Tabungan | C54: Lain-lain 2 | D54: Rp0.00 | E54: =Harian[[#This Row],[Tahunan]]/12 -> Rp0.00 | F54: =Harian[[#This Row],[Harian]]*365 -> Rp0.00
B55: Total | D55: =SUMIF(Harian[Tipe],"Pendapatan",Harian[Harian])-SUMIF(Harian[Tipe],"<>Pendapatan",Harian[Harian]) -> Rp107.10 | E55: =SUMIF(Harian[Tipe],"Pendapatan",Harian[Bulanan])-SUMIF(Harian[Tipe],"<>Pendapatan",Harian[Bulanan]) -> Rp3,257.63 | F55: =SUMIF(Harian[Tipe],"Pendapatan",Harian[Tahunan])-SUMIF(Harian[Tipe],"<>Pendapatan",Harian[Tahunan]) -> Rp39,091.50

Sheet Arus Kas Bulanan
B1: ARUS KAS PRIBADI
C2: Total Arus Kas Bulanan: | D2: =ArusKasBulananSaatIni -> Rp18,380.00 | F2: CATATAN: Untuk item harian, perkirakan jumlah/nilai bulanan dan tempatkan nilai tersebut dalam kolom bulan yang sesuai.
B4: Tipe | C4: Deskripsi | D4: Jan | E4: Feb | F4: Mar | G4: Apr | H4: Mei | I4: Jun | J4: Jul | K4: Agu | L4: Sep | M4: Okt | N4: Nov | O4: Des | P4: Total
B5: Pendapatan | C5: Gaji | D5: Rp7,500.00 | E5: Rp7,500.00 | F5: Rp7,500.00 | G5: Rp7,500.00 | H5: Rp7,500.00 | I5: Rp7,500.00 | P5: =SUM(Bulanan[[#This Row],[Jan]:[Des]]) -> Rp45,000.00
B6: Pendapatan | C6: Komisi/bonus | D6: Rp400.00 | E6: Rp400.00 | F6: Rp500.00 | G6: Rp200.00 | H6: Rp0.00 | I6: Rp600.00 | P6: =SUM(Bulanan[[#This Row],[Jan]:[Des]]) -> Rp2,100.00
B7: Pendapatan | C7: Lain-lain 1 | D7: Rp2,500.00 | E7: Rp2,500.00 | F7: Rp2,500.00 | G7: Rp2,500.00 | H7: Rp2,500.00 | I7: Rp2,500.00 | P7: =SUM(Bulanan[[#This Row],[Jan]:[Des]]) -> Rp15,000.00
B8: Pendapatan | C8: Lain-lain 2 | D8: Rp0.00 | E8: Rp0.00 | F8: Rp0.00 | G8: Rp0.00 | H8: Rp0.00 | I8: Rp0.00 | P8: =SUM(Bulanan[[#This Row],[Jan]:[Des]]) -> Rp0.00
B9: Pendapatan | C9: Lain-lain 3 | D9: Rp0.00 | E9: Rp0.00 | F9: Rp0.00 | G9: Rp0.00 | H9: Rp0.00 | I9: Rp0.00 | P9: =SUM(Bulanan[[#This Row],[Jan]:[Des]]) -> Rp0.00
B10: Pendapatan | C10: Lain-lain 4 | D10: Rp0.00 | E10: Rp0.00 | F10: Rp0.00 | G10: Rp0.00 | H10: Rp0.00 | I10: Rp0.00 | P10: =SUM(Bulanan[[#This Row],[Jan]:[Des]]) -> Rp0.00
B11: Pengeluaran | C11: Federal/SS/Medicare | D11: Rp1,250.00 | E11: Rp1,250.00 | F11: Rp1,250.00 | G11: Rp1,250.00 | H11: Rp1,250.00 | I11: Rp1,250.00 | P11: =SUM(Bulanan[[#This Row],[Jan]:[Des]]) -> Rp7,500.00
B12: Pengeluaran | C12: Pajak Pendapatan Daerah | D12: Rp208.33 | E12: Rp208.33 | F12: Rp208.33 | G12: Rp208.33 | H12: Rp208.33 | I12: Rp208.33 | P12: =SUM(Bulanan[[#This Row],[Jan]:[Des]]) -> Rp1,250.00
B13: Pengeluaran | C13: Pajak/Biaya Kendaraan | D13: Rp16.67 | E13: Rp16.67 | F13: Rp16.67 | G13: Rp16.67 | H13: Rp16.67 | I13: Rp16.67 | P13: =SUM(Bulanan[[#This Row],[Jan]:[Des]]) -> Rp100.00
B14: Pengeluaran | C14: Pembayaran Kendaraan | D14: Rp333.33 | E14: Rp333.33 | F14: Rp333.33 | G14: Rp333.33 | H14: Rp333.33 | I14: Rp333.33 | P14: =SUM(Bulanan[[#This Row],[Jan]:[Des]]) -> Rp2,000.00
B15: Pengeluaran | C15: Hipotek/Sewa | D15: Rp1,250.00 | E15: Rp1,250.00 | F15: Rp1,250.00 | G15: Rp1,250.00 | H15: Rp1,250.00 | I15: Rp1,250.00 | P15: =SUM(Bulanan[[#This Row],[Jan]:[Des]]) -> Rp7,500.00
B16: Pengeluaran | C16: Asuransi | D16: Rp25.00 | E16: Rp25.00 | F16: Rp25.00 | G16: Rp25.00 | H16: Rp25.00 | I16: Rp25.00 | P16: =SUM(Bulanan[[#This Row],[Jan]:[Des]]) -> Rp150.00
B17: Pengeluaran | C17: Listrik | D17: Rp100.00 | E17: Rp100.00 | F17: Rp100.00 | G17: Rp100.00 | H17: Rp100.00 | I17: Rp100.00 | P17: =SUM(Bulanan[[#This Row],[Jan]:[Des]]) -> Rp600.00
B18: Pengeluaran | C18: Bahan bakar | D18: Rp50.00 | E18: Rp50.00 | F18: Rp50.00 | G18: Rp50.00 | H18: Rp50.00 | I18: Rp50.00 | P18: =SUM(Bulanan[[#This Row],[Jan]:[Des]]) -> Rp300.00
B19: Pengeluaran | C19: Air | D19: Rp50.00 | E19: Rp50.00 | F19: Rp50.00 | G19: Rp50.00 | H19: Rp50.00 | I19: Rp50.00 | P19: =SUM(Bulanan[[#This Row],[Jan]:[Des]]) -> Rp300.00
B20: Pengeluaran | C20: Selokan | D20: Rp25.00 | E20: Rp25.00 | F20: Rp25.00 | G20: Rp25.00 | H20: Rp25.00 | I20: Rp25.00 | P20: =SUM(Bulanan[[#This Row],[Jan]:[Des]]) -> Rp150.00
B21: Pengeluaran | C21: Sampah | D21: Rp12.50 | E21: Rp12.50 | F21: Rp12.50 | G21: Rp12.50 | H21: Rp12.50 | I21: Rp12.50 | P21: =SUM(Bulanan[[#This Row],[Jan]:[Des]]) -> Rp75.00
B22: Pengeluaran | C22: Telepon | D22: Rp50.00 | E22: Rp50.00 | F22: Rp50.00 | G22: Rp50.00 | H22: Rp50.00 | I22: Rp50.00 | P22: =SUM(Bulanan[[#This Row],[Jan]:[Des]]) -> Rp300.00
B23: Pengeluaran | C23: Internet | D23: Rp50.00 | E23: Rp50.00 | F23: Rp50.00 | G23: Rp50.00 | H23: Rp50.00 | I23: Rp50.00 | P23: =SUM(Bulanan[[#This Row],[Jan]:[Des]]) -> Rp300.00
B24: Pengeluaran | C24: Prem Disabilitas | D24: Rp125.00 | E24: Rp125.00 | F24: Rp125.00 | G24: Rp125.00 | H24: Rp125.00 | I24: Rp125.00 | P24: =SUM(Bulanan[[#This Row],[Jan]:[Des]]) -> Rp750.00
B25: Pengeluaran | C25: Makanan | D25: Rp400.00 | E25: Rp500.00 | F25: Rp450.00 | G25: Rp400.00 | H25: Rp450.00 | I25: Rp425.00 | P25: =SUM(Bulanan[[#This Row],[Jan]:[Des]]) -> Rp2,625.00
B26: Pengeluaran | C26: Pakaian | D26: Rp50.00 | E26: Rp75.00 | F26: Rp100.00 | G26: Rp75.00 | H26: Rp125.00 | I26: Rp75.00 | P26: =SUM(Bulanan[[#This Row],[Jan]:[Des]]) -> Rp500.00
B27: Pengeluaran | C27: Medis/Gigi/Rx | D27: Rp50.00 | E27: Rp10.00 | F27: Rp25.00 | G27: Rp25.00 | H27: Rp20.00 | I27: Rp70.00 | P27: =SUM(Bulanan[[#This Row],[Jan]:[Des]]) -> Rp200.00
B28: Pengeluaran | C28: Bus | D28: Rp30.00 | E28: Rp30.00 | F28: Rp30.00 | G28: Rp20.00 | H28: Rp30.00 | I28: Rp30.00 | P28: =SUM(Bulanan[[#This Row],[Jan]:[Des]]) -> Rp170.00
B29: Pengeluaran | C29: Lain-lain 2 | D29: Rp0.00 | E29: Rp0.00 | F29: Rp0.00 | G29: Rp0.00 | H29: Rp0.00 | I29: Rp0.00 | P29: =SUM(Bulanan[[#This Row],[Jan]:[Des]]) -> Rp0.00
B30: Pengeluaran | C30: Lain-lain 3 | D30: Rp0.00 | E30: Rp0.00 | F30: Rp0.00 | G30: Rp0.00 | H30: Rp0.00 | I30: Rp0.00 | P30: =SUM(Bulanan[[#This Row],[Jan]:[Des]]) -> Rp0.00
B31: Pengeluaran | C31: Lain-lain 4 | D31: Rp0.00 | E31: Rp0.00 | F31: Rp0.00 | G31: Rp0.00 | H31: Rp0.00 | I31: Rp0.00 | P31: =SUM(Bulanan[[#This Row],[Jan]:[Des]]) -> Rp0.00
B32: Diskresioner | C32: Makan di Luar | D32: Rp50.00 | E32: Rp150.00 | F32: Rp100.00 | G32: Rp50.00 | H32: Rp150.00 | I32: Rp100.00 | P32: =SUM(Bulanan[[#This Row],[Jan]:[Des]]) -> Rp600.00
B33: Diskresioner | C33: Hadiah | D33: Rp25.00 | E33: Rp75.00 | F33: Rp50.00 | G33: Rp25.00 | H33: Rp75.00 | I33: Rp50.00 | P33: =SUM(Bulanan[[#This Row],[Jan]:[Des]]) -> Rp300.00
B34: Diskresioner | C34: Perjalanan | D34: Rp0.00 | E34: Rp0.00 | F34: Rp1,000.00 | G34: Rp0.00 | H34: Rp0.00 | I34: Rp1,000.00 | P34: =SUM(Bulanan[[#This Row],[Jan]:[Des]]) -> Rp2,000.00
B35: Diskresioner | C35: Hiburan | D35: Rp50.00 | E35: Rp150.00 | F35: Rp100.00 | G35: Rp50.00 | H35: Rp150.00 | I35: Rp100.00 | P35: =SUM(Bulanan[[#This Row],[Jan]:[Des]]) -> Rp600.00
B36: Diskresioner | C36: Perawatan Pribadi | D36: Rp15.00 | E36: Rp25.00 | F36: Rp35.00 | G36: Rp15.00 | H36: Rp25.00 | I36: Rp35.00 | P36: =SUM(Bulanan[[#This Row],[Jan]:[Des]]) -> Rp150.00
B37: Diskresioner | C37: Belanja | D37: Rp100.00 | E37: Rp200.00 | F37: Rp150.00 | G37: Rp175.00 | H37: Rp150.00 | I37: Rp175.00 | P37: =SUM(Bulanan[[#This Row],[Jan]:[Des]]) -> Rp950.00
B38: Diskresioner | C38: Amal | D38: Rp50.00 | E38: Rp50.00 | F38: Rp50.00 | G38: Rp50.00 | H38: Rp50.00 | I38: Rp50.00 | P38: =SUM(Bulanan[[#This Row],[Jan]:[Des]]) -> Rp300.00
B39: Diskresioner | C39: Klub/Keanggotaan | D39: Rp25.00 | E39: Rp25.00 | F39: Rp25.00 | G39: Rp25.00 | H39: Rp25.00 | I39: Rp25.00 | P39: =SUM(Bulanan[[#This Row],[Jan]:[Des]]) -> Rp150.00
B40: Diskresioner | C40: Renovasi Rumah | D40: Rp400.00 | E40: Rp400.00 | F40: Rp400.00 | G40: Rp400.00 | H40: Rp400.00 | I40: Rp400.00 | P40: =SUM(Bulanan[[#This Row],[Jan]:[Des]]) -> Rp2,400.00
B41: Diskresioner | C41: Lain-lain 1 | D41: Rp0.00 | E41: Rp0.00 | F41: Rp0.00 | G41: Rp0.00 | H41: Rp0.00 | I41: Rp0.00 | P41: =SUM(Bulanan[[#This Row],[Jan]:[Des]]) -> Rp0.00
B42: Diskresioner | C42: Lain-lain 2 | D42: Rp0.00 | E42: Rp0.00 | F42: Rp0.00 | G42: Rp0.00 | H42: Rp0.00 | I42: Rp0.00 | P42: =SUM(Bulanan[[#This Row],[Jan]:[Des]]) -> Rp0.00
B43: Tabungan | C43: Cadangan Kas | D43: Rp416.67 | E43: Rp416.67 | F43: Rp416.67 | G43: Rp416.67 | H43: Rp416.67 | I43: Rp416.67 | P43: =SUM(Bulanan[[#This Row],[Jan]:[Des]]) -> Rp2,500.00
B44: Tabungan | C44: Pensiun/Dll | D44: Rp1,000.00 | E44: Rp1,000.00 | F44: Rp1,000.00 | G44: Rp1,000.00 | H44: Rp1,000.00 | I44: Rp1,000.00 | P44: =SUM(Bulanan[[#This Row],[Jan]:[Des]]) -> Rp6,000.00
B45: Tabungan | C45: Rekening Tabungan | D45: Rp500.00 | E45: Rp500.00 | F45: Rp500.00 | G45: Rp500.00 | H45: Rp500.00 | I45: Rp500.00 | P45: =SUM(Bulanan[[#This Row],[Jan]:[Des]]) -> Rp3,000.00
B46: Tabungan | C46: Lain-lain 1 | D46: Rp0.00 | E46: Rp0.00 | F46: Rp0.00 | G46: Rp0.00 | H46: Rp0.00 | I46: Rp0.00 | P46: =SUM(Bulanan[[#This Row],[Jan]:[Des]]) -> Rp0.00
B47: Tabungan | C47: Lain-lain 2 | D47: Rp0.00 | E47: Rp0.00 | F47: Rp0.00 | G47: Rp0.00 | H47: Rp0.00 | I47: Rp0.00 | P47: =SUM(Bulanan[[#This Row],[Jan]:[Des]]) -> Rp0.00
B48: Total | D48: =SUMIF(Bulanan[Tipe],"Pendapatan",Bulanan[Jan])-SUMIF(Bulanan[Tipe],"<>Pendapatan",Bulanan[Jan]) -> Rp3,692.50 | E48: =SUMIF(Bulanan[Tipe],"Pendapatan",Bulanan[Feb])-SUMIF(Bulanan[Tipe],"<>Pendapatan",Bulanan[Feb]) -> Rp3,247.50 | F48: =SUMIF(Bulanan[Tipe],"Pendapatan",Bulanan[Mar])-SUMIF(Bulanan[Tipe],"<>Pendapatan",Bulanan[Mar]) -> Rp2,522.50 | G48: =SUMIF(Bulanan[Tipe],"Pendapatan",Bulanan[Apr])-SUMIF(Bulanan[Tipe],"<>Pendapatan",Bulanan[Apr]) -> Rp3,427.50 | H48: =SUMIF(Bulanan[Tipe],"Pendapatan",Bulanan[Mei])-SUMIF(Bulanan[Tipe],"<>Pendapatan",Bulanan[Mei]) -> Rp2,887.50 | I48: =SUMIF(Bulanan[Tipe],"Pendapatan",Bulanan[Jun])-SUMIF(Bulanan[Tipe],"<>Pendapatan",Bulanan[Jun]) -> Rp2,602.50 | J48: =SUMIF(Bulanan[Tipe],"Pendapatan",Bulanan[Jul])-SUMIF(Bulanan[Tipe],"<>Pendapatan",Bulanan[Jul]) -> Rp0.00 | K48: =SUMIF(Bulanan[Tipe],"Pendapatan",Bulanan[Agu])-SUMIF(Bulanan[Tipe],"<>Pendapatan",Bulanan[Agu]) -> Rp0.00 | L48: =SUMIF(Bulanan[Tipe],"Pendapatan",Bulanan[Sep])-SUMIF(Bulanan[Tipe],"<>Pendapatan",Bulanan[Sep]) -> Rp0.00 | M48: =SUMIF(Bulanan[Tipe],"Pendapatan",Bulanan[Okt])-SUMIF(Bulanan[Tipe],"<>Pendapatan",Bulanan[Okt]) -> Rp0.00 | N48: =SUMIF(Bulanan[Tipe],"Pendapatan",Bulanan[Nov])-SUMIF(Bulanan[Tipe],"<>Pendapatan",Bulanan[Nov]) -> Rp0.00 | O48: =SUMIF(Bulanan[Tipe],"Pendapatan",Bulanan[Des])-SUMIF(Bulanan[Tipe],"<>Pendapatan",Bulanan[Des]) -> Rp0.00 | P48: =SUMIF(Bulanan[Tipe],"Pendapatan",Bulanan[Total])-SUMIF(Bulanan[Tipe],"<>Pendapatan",Bulanan[Total]) -> Rp18,380.00

Sheet Arus Kas Tahunan
B1: ARUS KAS PRIBADI
C2: Total Arus Kas Saat Ini: | D2: =AnnualCashFlowToDate -> Rp42,250.00 | G2: Ini adalah perkiraan tahunan. Gunakan lembar kerja ini jika ingin melihat jumlah tahunan dengan perkiraan jumlah bulanan. Gunakan lembar kerja Pendapatan, Pengeluaran, Diskresi, dan Tabungan untuk memasukkan item.
B4: RINGKASAN PENDAPATAN | F4: RINGKASAN PENGELUARAN | J4: RINGKASAN DISKRESIONER | N4: RINGKASAN TABUNGAN
B5: Total Tahunan: | C5: =Pendapatan!C11 -> Rp125,000.00 | F5: Total Tahunan: | G5: =Pengeluaran[[#Totals],[Tahunan ]] -> Rp46,500.00 | J5: Total Tahunan: | K5: =Diskresioner[[#Totals],[Tahunan ]] -> Rp13,250.00 | N5: Total Tahunan: | O5: =Tabungan[[#Totals],[Tahunan ]] -> Rp23,000.00
B8: Total Bulanan: | C8: =Pendapatan!D11 -> Rp10,416.67 | F8: Total Bulanan: | G8: =Pengeluaran[[#Totals],[Bulanan ]] -> Rp3,875.00 | J8: Total Bulanan: | K8: =Diskresioner[[#Totals],[Bulanan ]] -> Rp1,104.17 | N8: Total Bulanan: | O8: =Tabungan!D10 -> Rp1,916.67
R10: Label Baris | S10: Pendapatan Tahunan | U10: Label Baris | V10: Jumlah Tahunan | X10: Label Baris | Y10: Jumlah Tahunan | AA10: Label Baris | AB10: Jumlah Tahunan
R11: Lain-lain 4 | S11: Rp0 | U11: Lain-lain 1 | V11: Rp0 | X11: Lain-lain 1 | Y11: Rp0 | AA11: Lain-lain 2 | AB11: Rp0
R12: Lain-lain 3 | S12: Rp0 | U12: Lain-lain 2 | V12: Rp0 | X12: Lain-lain 2 | Y12: Rp0 | AA12: Lain-lain 1 | AB12: Rp0
R13: Lain-lain 2 | S13: Rp0 | U13: Sampah | V13: Rp150 | X13: Klub/Keanggotaan | Y13: Rp300 | AA13: Cadangan Kas | AB13: Rp5,000
R14: Komisi/bonus | S14: Rp5,000 | U14: Pajak/Biaya Kendaraan | V14: Rp200 | X14: Perawatan Pribadi | Y14: Rp300 | AA14: Tabungan/Investasi | AB14: Rp6,000
R15: Lain-lain 1 | S15: Rp30,000 | U15: Asuransi | V15: Rp250 | X15: Amal | Y15: Rp600 | AA15: Pensiun/Dll | AB15: Rp12,000
R16: Gaji | S16: Rp90,000 | U16: Medis/Gigi/Rx | V16: Rp600 | X16: Hadiah | Y16: Rp600 | AA16: Total Keseluruhan | AB16: Rp23,000
R17: Total Keseluruhan | S17: Rp125,000 | U17: Bahan bakar | V17: Rp600 | X17: Makan di Luar | Y17: Rp1,200
U18: Internet | V18: Rp600 | X18: Hiburan | Y18: Rp1,200
U19: Air/Selokan | V19: Rp600 | X19: Belanja | Y19: Rp2,000
U20: Telepon | V20: Rp600 | X20: Perjalanan | Y20: Rp2,250
U21: Listrik | V21: Rp1,200 | X21: Renovasi Rumah | Y21: Rp4,800
U22: Pakaian | V22: Rp1,200 | X22: Total Keseluruhan | Y22: Rp13,250
U23: Prem Disabilitas | V23: Rp1,500
U24: Pajak Pendapatan Daerah | V24: Rp2,500
U25: Pembayaran Kendaraan | V25: Rp4,000
U26: Makanan | V26: Rp5,000
U27: Federal/SS/Medicare | V27: Rp12,500
U28: Hipotek/Sewa | V28: Rp15,000
U29: Total Keseluruhan | V29: Rp46,500

Sheet Pendapatan
B1: ARUS KAS PRIBADI
C2: Total Arus Kas Saat Ini: | D2: =AnnualCashFlowToDate -> Rp42,250.00 | F2: Ini adalah perkiraan tahunan. Gunakan lembar kerja ini jika ingin melihat jumlah tahunan dengan perkiraan nilai bulanan. Jika ingin menambahkan item harian ke Tabel, perkirakan jumlah/nilai tahunan dan tempatkan nilai dalam kolom Tahunan.
B4: Pendapatan | C4: Tahunan | D4: Bulanan
B5: Gaji | C5: Rp90,000.00 | D5: =Pendapatan[[#This Row],[Tahunan ]]/12 -> Rp7,500.00
B6: Komisi/bonus | C6: Rp5,000.00 | D6: =Pendapatan[[#This Row],[Tahunan ]]/12 -> Rp416.67
B7: Lain-lain 1 | C7: Rp30,000.00 | D7: =Pendapatan[[#This Row],[Tahunan ]]/12 -> Rp2,500.00
B8: Lain-lain 2 | C8: Rp0.00 | D8: =Pendapatan[[#This Row],[Tahunan ]]/12 -> Rp0.00
B9: Lain-lain 3 | C9: Rp0.00 | D9: =Pendapatan[[#This Row],[Tahunan ]]/12 -> Rp0.00
B10: Lain-lain 4 | C10: Rp0.00 | D10: =Pendapatan[[#This Row],[Tahunan ]]/12 -> Rp0.00
B11: Total | C11: =SUBTOTAL(109,Pendapatan[[Tahunan ]]) -> Rp125,000.00 | D11: =SUBTOTAL(109,Pendapatan[[Bulanan ]]) -> Rp10,416.67

Sheet Pengeluaran
B1: ARUS KAS PRIBADI
C2: Total Arus Kas Saat Ini: | D2: =AnnualCashFlowToDate -> Rp42,250.00 | F2: Ini adalah perkiraan tahunan. Gunakan lembar kerja ini jika ingin melihat jumlah tahunan dengan perkiraan nilai bulanan. Jika ingin menambahkan item harian ke Tabel, perkirakan jumlah/nilai tahunan dan tempatkan nilai dalam kolom Tahunan.
B4: Pengeluaran | C4: Tahunan | D4: Bulanan
B5: Federal/SS/Medicare | C5: Rp12,500.00 | D5: =Pengeluaran[[#This Row],[Tahunan ]]/12 -> Rp1,041.67
B6: Pajak Pendapatan Daerah | C6: Rp2,500.00 | D6: =Pengeluaran[[#This Row],[Tahunan ]]/12 -> Rp208.33
B7: Pajak/Biaya Kendaraan | C7: Rp200.00 | D7: =Pengeluaran[[#This Row],[Tahunan ]]/12 -> Rp16.67
B8: Pembayaran Kendaraan | C8: Rp4,000.00 | D8: =Pengeluaran[[#This Row],[Tahunan ]]/12 -> Rp333.33
B9: Hipotek/Sewa | C9: Rp15,000.00 | D9: =Pengeluaran[[#This Row],[Tahunan ]]/12 -> Rp1,250.00
B10: Asuransi | C10: Rp250.00 | D10: =Pengeluaran[[#This Row],[Tahunan ]]/12 -> Rp20.83
B11: Listrik | C11: Rp1,200.00 | D11: =Pengeluaran[[#This Row],[Tahunan ]]/12 -> Rp100.00
B12: Bahan bakar | C12: Rp600.00 | D12: =Pengeluaran[[#This Row],[Tahunan ]]/12 -> Rp50.00
B13: Air/Selokan | C13: Rp600.00 | D13: =Pengeluaran[[#This Row],[Tahunan ]]/12 -> Rp50.00
B14: Sampah | C14: Rp150.00 | D14: =Pengeluaran[[#This Row],[Tahunan ]]/12 -> Rp12.50
B15: Telepon | C15: Rp600.00 | D15: =Pengeluaran[[#This Row],[Tahunan ]]/12 -> Rp50.00
B16: Internet | C16: Rp600.00 | D16: =Pengeluaran[[#This Row],[Tahunan ]]/12 -> Rp50.00
B17: Prem Disabilitas | C17: Rp1,500.00 | D17: =Pengeluaran[[#This Row],[Tahunan ]]/12 -> Rp125.00
B18: Makanan | C18: Rp5,000.00 | D18: =Pengeluaran[[#This Row],[Tahunan ]]/12 -> Rp416.67
B19: Pakaian | C19: Rp1,200.00 | D19: =Pengeluaran[[#This Row],[Tahunan ]]/12 -> Rp100.00
B20: Medis/Gigi/Rx | C20: Rp600.00 | D20: =Pengeluaran[[#This Row],[Tahunan ]]/12 -> Rp50.00
B21: Lain-lain 1 | C21: Rp0.00 | D21: =Pengeluaran[[#This Row],[Tahunan ]]/12 -> Rp0.00
B22: Lain-lain 2 | C22: Rp0.00 | D22: =Pengeluaran[[#This Row],[Tahunan ]]/12 -> Rp0.00
B23: Total | C23: =SUBTOTAL(109,Pengeluaran[[Tahunan ]]) -> Rp46,500.00 | D23: =SUBTOTAL(109,Pengeluaran[[Bulanan ]]) -> Rp3,875.00

Sheet Diskresioner
B1: ARUS KAS PRIBADI
C2: Total Arus Kas Saat Ini: | D2: =AnnualCashFlowToDate -> Rp42,250.00 | F2: Ini adalah perkiraan tahunan. Gunakan lembar kerja ini jika ingin melihat jumlah tahunan dengan perkiraan nilai bulanan. Jika ingin menambahkan item harian ke Tabel, perkirakan jumlah/nilai tahunan dan tempatkan nilai dalam kolom Tahunan.
B4: Diskresioner | C4: Tahunan | D4: Bulanan
B5: Makan di Luar | C5: Rp1,200.00 | D5: =Diskresioner[[#This Row],[Tahunan ]]/12 -> Rp100.00
B6: Hadiah | C6: Rp600.00 | D6: =Diskresioner[[#This Row],[Tahunan ]]/12 -> Rp50.00
B7: Perjalanan | C7: Rp2,250.00 | D7: =Diskresioner[[#This Row],[Tahunan ]]/12 -> Rp187.50
B8: Hiburan | C8: Rp1,200.00 | D8: =Diskresioner[[#This Row],[Tahunan ]]/12 -> Rp100.00
B9: Perawatan Pribadi | C9: Rp300.00 | D9: =Diskresioner[[#This Row],[Tahunan ]]/12 -> Rp25.00
B10: Belanja | C10: Rp2,000.00 | D10: =Diskresioner[[#This Row],[Tahunan ]]/12 -> Rp166.67
B11: Amal | C11: Rp600.00 | D11: =Diskresioner[[#This Row],[Tahunan ]]/12 -> Rp50.00
B12: Klub/Keanggotaan | C12: Rp300.00 | D12: =Diskresioner[[#This Row],[Tahunan ]]/12 -> Rp25.00
B13: Renovasi Rumah | C13: Rp4,800.00 | D13: =Diskresioner[[#This Row],[Tahunan ]]/12 -> Rp400.00
B14: Lain-lain 1 | C14: Rp0.00 | D14: =Diskresioner[[#This Row],[Tahunan ]]/12 -> Rp0.00
B15: Lain-lain 2 | C15: Rp0.00 | D15: =Diskresioner[[#This Row],[Tahunan ]]/12 -> Rp0.00
B16: Total | C16: =SUBTOTAL(109,Diskresioner[[Tahunan ]]) -> Rp13,250.00 | D16: =SUBTOTAL(109,Diskresioner[[Bulanan ]]) -> Rp1,104.17

Sheet Tabungan
B1: ARUS KAS PRIBADI
C2: Total Arus Kas Saat Ini: | D2: =AnnualCashFlowToDate -> Rp42,250.00 | F2: Ini adalah perkiraan tahunan. Gunakan lembar kerja ini jika ingin melihat jumlah tahunan dengan perkiraan nilai bulanan. Jika ingin menambahkan item harian ke Tabel, perkirakan jumlah/nilai tahunan dan tempatkan nilai dalam kolom Tahunan.
B4: Tabungan | C4: Tahunan | D4: Bulanan
B5: Cadangan Kas | C5: Rp5,000.00 | D5: =Tabungan[[#This Row],[Tahunan ]]/12 -> Rp416.67
B6: Pensiun/Dll | C6: Rp12,000.00 | D6: =Tabungan[[#This Row],[Tahunan ]]/12 -> Rp1,000.00
B7: Tabungan/Investasi | C7: Rp6,000.00 | D7: =Tabungan[[#This Row],[Tahunan ]]/12 -> Rp500.00
B8: Lain-lain 1 | C8: Rp0.00 | D8: =Tabungan[[#This Row],[Tahunan ]]/12 -> Rp0.00
B9: Lain-lain 2 | C9: Rp0.00 | D9: =Tabungan[[#This Row],[Tahunan ]]/12 -> Rp0.00
B10: Total | C10: =SUBTOTAL(109,Tabungan[[Tahunan ]]) -> Rp23,000.00 | D10: =SUBTOTAL(109,Tabungan[[Bulanan ]]) -> Rp1,916.67
